[Event "Late-Titled-Tuesday-Blitz-February-20-2024"]
[Site "Chess.com"]
[Date "2024.02.20"]
[Round "3"]
[White "SchmakAttack"]
[Black "DanielNaroditsky"]
[Result "1-0"]
[WhiteElo "2831"]
[BlackElo "3108"]
[TimeControl "180+1"]
[EndTime "14:27:44 PST"]
[Termination "SchmakAttack won by checkmate"]

1. e4 {[%clk 0:03:00.9]} 1... Nf6 {[%clk 0:02:59.6]} 2. e5 {[%clk 0:03:00.1]}
2... Nd5 {[%clk 0:03:00.2]} 3. d4 {[%clk 0:03:00.5]} 3... d6 {[%clk 0:03:00.7]}
4. c4 {[%clk 0:02:58.9]} 4... Nb6 {[%clk 0:03:01.2]} 5. exd6 {[%clk 0:02:59.4]}
5... exd6 {[%clk 0:03:01.6]} 6. Nc3 {[%clk 0:02:58.7]} 6... Be7 {[%clk
0:03:02.3]} 7. Bd3 {[%clk 0:02:54]} 7... O-O {[%clk 0:03:02.5]} 8. h3 {[%clk
0:02:47.9]} 8... Bf6 {[%clk 0:03:01.3]} 9. Nf3 {[%clk 0:02:47.3]} 9... c6 {[%clk
0:02:51.9]} 10. O-O {[%clk 0:02:43.2]} 10... Na6 {[%clk 0:02:52.4]} 11. b3
{[%clk 0:02:32.3]} 11... Nc7 {[%clk 0:02:49.9]} 12. Be3 {[%clk 0:02:16.9]} 12...
d5 {[%clk 0:02:49.4]} 13. c5 {[%clk 0:02:12.9]} 13... Nd7 {[%clk 0:02:49.5]} 14.
b4 {[%clk 0:02:06.9]} 14... g6 {[%clk 0:02:36.2]} 15. Qd2 {[%clk 0:01:59.5]}
15... Re8 {[%clk 0:02:32.2]} 16. Rfe1 {[%clk 0:01:53]} 16... Ne6 {[%clk
0:02:32.3]} 17. Rac1 {[%clk 0:01:32.3]} 17... Ndf8 {[%clk 0:02:28.1]} 18. a4
{[%clk 0:01:31.1]} 18... a6 {[%clk 0:02:26.7]} 19. b5 {[%clk 0:01:28.1]} 19...
axb5 {[%clk 0:02:27.6]} 20. axb5 {[%clk 0:01:29]} 20... Ra3 {[%clk 0:02:28]} 21.
Qb2 {[%clk 0:00:55.2]} 21... Ra8 {[%clk 0:02:18.2]} 22. bxc6 {[%clk 0:00:51.1]}
22... bxc6 {[%clk 0:02:18.5]} 23. Ra1 {[%clk 0:00:47.8]} 23... Bd7 {[%clk
0:01:42.8]} 24. Na4 {[%clk 0:00:43.7]} 24... Rb8 {[%clk 0:01:33.3]} 25. Qc2
{[%clk 0:00:38.6]} 25... Ng7 {[%clk 0:01:23.4]} 26. Nb6 {[%clk 0:00:31.1]} 26...
Qc7 {[%clk 0:01:16.1]} 27. Qd2 {[%clk 0:00:28.3]} 27... Nfe6 {[%clk 0:01:13.3]}
28. Ra4 {[%clk 0:00:24.6]} 28... Rxb6 {[%clk 0:00:57.4]} 29. cxb6 {[%clk
0:00:24.6]} 29... Qxb6 {[%clk 0:00:58.3]} 30. Rb1 {[%clk 0:00:22.4]} 30... Qc7
{[%clk 0:00:56.3]} 31. Rab4 {[%clk 0:00:22.6]} 31... Bc8 {[%clk 0:00:49.7]} 32.
Rb8 {[%clk 0:00:17.9]} 32... c5 {[%clk 0:00:36.5]} 33. dxc5 {[%clk 0:00:12.9]}
33... d4 {[%clk 0:00:37.4]} 34. Bg5 {[%clk 0:00:11.5]} 34... Nh5 {[%clk
0:00:14.2]} 35. Bxf6 {[%clk 0:00:04.4]} 35... Nxf6 {[%clk 0:00:15.1]} 36. Bc4
{[%clk 0:00:05]} 36... Ne4 {[%clk 0:00:13.9]} 37. Qc2 {[%clk 0:00:02.4]} 37...
Nc3 {[%clk 0:00:11.8]} 38. R1b2 {[%clk 0:00:03]} 38... Qxc5 {[%clk 0:00:06.7]}
39. Bxe6 {[%clk 0:00:03.3]} 39... Rxe6 {[%clk 0:00:07.6]} 40. Qd2 {[%clk
0:00:02.6]} 40... Rd6 {[%clk 0:00:03.7]} 41. Kh2 {[%clk 0:00:02.6]} 41... Qc7
{[%clk 0:00:03.7]} 42. Qf4 {[%clk 0:00:02.3]} 42... Kg7 {[%clk 0:00:02.2]} 43.
Rxc8 {[%clk 0:00:02.5]} 43... Qd7 {[%clk 0:00:01.7]} 44. Rc4 {[%clk 0:00:01.9]}
44... d3 {[%clk 0:00:01.4]} 45. Rxc3 {[%clk 0:00:01.7]} 45... d2 {[%clk
0:00:02.3]} 46. Rxd2 {[%clk 0:00:01.9]} 46... Rxd2 {[%clk 0:00:02.7]} 47. Qxd2
{[%clk 0:00:02.8]} 47... Qe7 {[%clk 0:00:03.1]} 48. Qd4+ {[%clk 0:00:02.9]}
48... Kg8 {[%clk 0:00:03.6]} 49. Qe5 {[%clk 0:00:03.4]} 49... Qd7 {[%clk
0:00:03.8]} 50. Re3 {[%clk 0:00:03.7]} 50... Qd1 {[%clk 0:00:02.2]} 51. Qf6
{[%clk 0:00:03.7]} 51... Qd7 {[%clk 0:00:02]} 52. Re7 {[%clk 0:00:03.9]} 52...
Qd5 {[%clk 0:00:02.1]} 53. Re8# {[%clk 0:00:03.9]} 1-0

[Event "Late-Titled-Tuesday-Blitz-February-20-2024"]
[Site "Chess.com"]
[Date "2024.02.20"]
[Round "3"]
[White "ArchibaldCerveza29"]
[Black "giovannibrandao7"]
[Result "0-1"]
[WhiteElo "2454"]
[BlackElo "2250"]
[TimeControl "180+1"]
[EndTime "14:27:49 PST"]
[Termination "giovannibrandao7 won by resignation"]

1. e4 {[%clk 0:03:00.9]} 1... Nf6 {[%clk 0:03:00.7]} 2. e5 {[%clk 0:02:59]} 2...
Nd5 {[%clk 0:03:01.3]} 3. d4 {[%clk 0:02:59.2]} 3... d6 {[%clk 0:03:01.1]} 4.
Nf3 {[%clk 0:02:59.4]} 4... Nc6 {[%clk 0:03:00.7]} 5. Bc4 {[%clk 0:02:56.1]}
5... Nb6 {[%clk 0:02:50.4]} 6. Bb3 {[%clk 0:02:55.6]} 6... dxe5 {[%clk 0:02:40]}
7. dxe5 {[%clk 0:02:45.5]} 7... Qxd1+ {[%clk 0:02:38.5]} 8. Kxd1 {[%clk
0:02:46.4]} 8... Bg4 {[%clk 0:02:38.5]} 9. Bf4 {[%clk 0:02:41.6]} 9... e6 {[%clk
0:02:37.1]} 10. Nd2 {[%clk 0:02:36.9]} 10... O-O-O {[%clk 0:02:35]} 11. h3
{[%clk 0:02:16]} 11... Bxf3+ {[%clk 0:01:56.5]} 12. gxf3 {[%clk 0:02:16.9]}
12... Bc5 {[%clk 0:01:24]} 13. Ke1 {[%clk 0:02:07.4]} 13... Bd4 {[%clk
0:01:22.7]} 14. c3 {[%clk 0:01:32.2]} 14... Bxe5 {[%clk 0:01:20.5]} 15. Be3
{[%clk 0:01:22.9]} 15... Nd5 {[%clk 0:01:09.3]} 16. Nc4 {[%clk 0:01:16.3]} 16...
Bf4 {[%clk 0:00:53]} 17. Ke2 {[%clk 0:01:08.1]} 17... e5 {[%clk 0:00:37.9]} 18.
Rhg1 {[%clk 0:01:06.7]} 18... g6 {[%clk 0:00:36.9]} 19. Rad1 {[%clk 0:01:02.9]}
19... Bxe3 {[%clk 0:00:27.7]} 20. fxe3 {[%clk 0:00:55.5]} 20... Nde7 {[%clk
0:00:27.7]} 21. Nd2 {[%clk 0:00:52]} 21... f5 {[%clk 0:00:20.4]} 22. Nc4 {[%clk
0:00:37.8]} 22... b6 {[%clk 0:00:14.9]} 23. a4 {[%clk 0:00:36.1]} 23... Kb7
{[%clk 0:00:15]} 24. Na3 {[%clk 0:00:35.5]} 24... a6 {[%clk 0:00:14]} 25. Nc2
{[%clk 0:00:35]} 25... Nc8 {[%clk 0:00:05.3]} 26. Nb4 {[%clk 0:00:31.9]} 26...
Nxb4 {[%clk 0:00:04.6]} 27. cxb4 {[%clk 0:00:32.8]} 27... Nd6 {[%clk 0:00:04.9]}
28. Bd5+ {[%clk 0:00:28.8]} 28... c6 {[%clk 0:00:04.7]} 29. Bb3 {[%clk
0:00:27.9]} 29... Nc8 {[%clk 0:00:02.6]} 30. Rc1 {[%clk 0:00:26.7]} 30... Ne7
{[%clk 0:00:02.8]} 31. Rc4 {[%clk 0:00:18.6]} 31... Rd6 {[%clk 0:00:02.3]} 32.
Rgc1 {[%clk 0:00:18.9]} 32... Rhd8 {[%clk 0:00:02.4]} 33. R1c2 {[%clk
0:00:16.2]} 33... Nd5 {[%clk 0:00:02.9]} 34. b5 {[%clk 0:00:15.8]} 34... axb5
{[%clk 0:00:02.8]} 35. axb5 {[%clk 0:00:16.7]} 35... c5 {[%clk 0:00:03.5]} 36.
Rh4 {[%clk 0:00:15.4]} 36... Nb4 {[%clk 0:00:03.8]} 37. Rxh7+ {[%clk 0:00:14.7]}
37... Kb8 {[%clk 0:00:04.5]} 38. Rh4 {[%clk 0:00:10.6]} 38... Nxc2 {[%clk
0:00:03.6]} 39. Bxc2 {[%clk 0:00:10.2]} 39... Rd2+ {[%clk 0:00:04.1]} 40. Ke1
{[%clk 0:00:09.8]} 40... Rxc2 {[%clk 0:00:04.6]} 41. Rh6 {[%clk 0:00:10.1]}
41... Rxb2 {[%clk 0:00:04.7]} 42. Rxg6 {[%clk 0:00:10.6]} 42... Rxb5 {[%clk
0:00:02.4]} 43. Re6 {[%clk 0:00:09.6]} 43... c4 {[%clk 0:00:02.6]} 44. Rc6
{[%clk 0:00:09.5]} 44... Rc5 {[%clk 0:00:03.1]} 45. Rxb6+ {[%clk 0:00:09.4]}
45... Kc7 {[%clk 0:00:03.8]} 46. Rb2 {[%clk 0:00:10.1]} 46... c3 {[%clk
0:00:04.4]} 47. Rc2 {[%clk 0:00:10.7]} 47... Ra8 {[%clk 0:00:05.1]} 48. Ke2
{[%clk 0:00:10.5]} 48... Rb8 {[%clk 0:00:04.8]} 49. Kd3 {[%clk 0:00:10.5]} 49...
Rb2 {[%clk 0:00:05.3]} 50. Rxc3 {[%clk 0:00:10.9]} 50... Rxc3+ {[%clk
0:00:05.7]} 51. Kxc3 {[%clk 0:00:11.8]} 51... Rh2 {[%clk 0:00:05.9]} 52. Kc4
{[%clk 0:00:12.4]} 52... Rxh3 {[%clk 0:00:06.2]} 53. Kd5 {[%clk 0:00:13.1]}
53... Rxf3 {[%clk 0:00:06.7]} 54. Kxe5 {[%clk 0:00:13.7]} 54... Rxe3+ {[%clk
0:00:07.1]} 55. Kxf5 {[%clk 0:00:14.4]} 55... Kd6 {[%clk 0:00:07.7]} 56. Kf4
{[%clk 0:00:15]} 56... Re5 {[%clk 0:00:08.6]} 0-1

[Event "Late-Titled-Tuesday-Blitz-February-20-2024"]
[Site "Chess.com"]
[Date "2024.02.20"]
[Round "3"]
[White "Angry_Twin"]
[Black "Fonsofan"]
[Result "1-0"]
[WhiteElo "2973"]
[BlackElo "2678"]
[TimeControl "180+1"]
[EndTime "14:27:51 PST"]
[Termination "Angry_Twin won on time"]

1. e4 {[%clk 0:03:00.9]} 1... d6 {[%clk 0:03:00.4]} 2. d4 {[%clk 0:03:01]} 2...
Nf6 {[%clk 0:03:01.1]} 3. Nc3 {[%clk 0:03:01.7]} 3... e5 {[%clk 0:03:01.7]} 4.
dxe5 {[%clk 0:03:02.3]} 4... dxe5 {[%clk 0:03:01.4]} 5. Qxd8+ {[%clk 0:03:03.2]}
5... Kxd8 {[%clk 0:03:02.1]} 6. Bc4 {[%clk 0:03:03.9]} 6... Be6 {[%clk 0:03:02]}
7. Bxe6 {[%clk 0:03:03.7]} 7... fxe6 {[%clk 0:03:02.9]} 8. f3 {[%clk 0:03:02.2]}
8... Nbd7 {[%clk 0:03:01.9]} 9. Nh3 {[%clk 0:03:02.2]} 9... Bd6 {[%clk 0:03:01]}
10. Nf2 {[%clk 0:03:02.4]} 10... a6 {[%clk 0:03:00.8]} 11. Be3 {[%clk
0:03:00.7]} 11... Ke7 {[%clk 0:03:01.2]} 12. Nd3 {[%clk 0:03:00.9]} 12... Rhd8
{[%clk 0:02:57]} 13. O-O-O {[%clk 0:03:00.7]} 13... b5 {[%clk 0:02:51]} 14. a4
{[%clk 0:03:00.5]} 14... Rab8 {[%clk 0:02:47.3]} 15. h4 {[%clk 0:02:24.4]} 15...
c5 {[%clk 0:02:46.9]} 16. Nf2 {[%clk 0:02:10.2]} 16... c4 {[%clk 0:02:44.5]} 17.
h5 {[%clk 0:02:08.4]} 17... b4 {[%clk 0:02:39]} 18. Ne2 {[%clk 0:01:53.6]} 18...
Bc5 {[%clk 0:02:39]} 19. Bxc5+ {[%clk 0:01:39.9]} 19... Nxc5 {[%clk 0:02:39.9]}
20. Rxd8 {[%clk 0:01:31.5]} 20... Rxd8 {[%clk 0:02:22]} 21. h6 {[%clk
0:01:31.7]} 21... g6 {[%clk 0:02:17.9]} 22. Nd1 {[%clk 0:01:26.3]} 22... Nxa4
{[%clk 0:02:14.5]} 23. Ne3 {[%clk 0:01:26.4]} 23... Nb6 {[%clk 0:02:14.6]} 24.
Ng1 {[%clk 0:00:47.1]} 24... g5 {[%clk 0:01:47.6]} 25. Nh3 {[%clk 0:00:46.1]}
25... Rg8 {[%clk 0:01:47.8]} 26. Nf2 {[%clk 0:00:44]} 26... a5 {[%clk
0:01:16.5]} 27. Nfg4 {[%clk 0:00:43.9]} 27... Nfd7 {[%clk 0:01:17.1]} 28. Kd2
{[%clk 0:00:29.6]} 28... a4 {[%clk 0:01:13.5]} 29. Ke2 {[%clk 0:00:30.1]} 29...
Ra8 {[%clk 0:01:13.1]} 30. Ra1 {[%clk 0:00:29.9]} 30... a3 {[%clk 0:01:10.9]}
31. bxa3 {[%clk 0:00:29]} 31... Rxa3 {[%clk 0:01:11.8]} 32. Rh1 {[%clk
0:00:28.1]} 32... Ra2 {[%clk 0:01:05.1]} 33. Kd2 {[%clk 0:00:28.3]} 33... b3
{[%clk 0:00:57.8]} 34. Rb1 {[%clk 0:00:28.2]} 34... b2 {[%clk 0:00:46.3]} 35. c3
{[%clk 0:00:20.4]} 35... Kd6 {[%clk 0:00:13.8]} 36. Kc2 {[%clk 0:00:20.1]} 36...
Ke7 {[%clk 0:00:05.7]} 37. Rxb2 {[%clk 0:00:20.4]} 37... Rxb2+ {[%clk
0:00:06.3]} 38. Kxb2 {[%clk 0:00:20.7]} 38... Na4+ {[%clk 0:00:07.2]} 39. Kc2
{[%clk 0:00:21]} 39... Nab6 {[%clk 0:00:07.3]} 40. Kd2 {[%clk 0:00:20.6]} 40...
Kd6 {[%clk 0:00:07.7]} 41. Nc2 {[%clk 0:00:15.2]} 41... Na4 {[%clk 0:00:07.3]}
42. Na3 {[%clk 0:00:15.3]} 42... Nab6 {[%clk 0:00:08]} 43. Nb5+ {[%clk
0:00:15.2]} 43... Ke7 {[%clk 0:00:08.1]} 44. Na3 {[%clk 0:00:13.6]} 44... Kd6
{[%clk 0:00:08.5]} 45. Nc2 {[%clk 0:00:12.6]} 45... Ke7 {[%clk 0:00:08.7]} 46.
Nf2 {[%clk 0:00:07.5]} 46... Nf6 {[%clk 0:00:06.9]} 47. Ne3 {[%clk 0:00:07.9]}
47... Ng8 {[%clk 0:00:06]} 48. Nfg4 {[%clk 0:00:08.3]} 48... Kd6 {[%clk
0:00:03.2]} 49. Kc2 {[%clk 0:00:08.5]} 49... Kc7 {[%clk 0:00:01.1]} 50. Nxe5
{[%clk 0:00:08]} 50... Nxh6 {[%clk 0:00:01.1]} 51. N5xc4 {[%clk 0:00:08.6]} 1-0

[Event "Late-Titled-Tuesday-Blitz-February-20-2024"]
[Site "Chess.com"]
[Date "2024.02.20"]
[Round "3"]
[White "Sacbutt"]
[Black "Mikhail_Golubev"]
[Result "0-1"]
[WhiteElo "2300"]
[BlackElo "2604"]
[TimeControl "180+1"]
[EndTime "14:27:51 PST"]
[Termination "Mikhail_Golubev won on time"]

1. e4 {[%clk 0:03:00.9]} 1... c5 {[%clk 0:02:59.4]} 2. Nf3 {[%clk 0:03:01.3]}
2... d6 {[%clk 0:02:58.3]} 3. d4 {[%clk 0:03:00.7]} 3... Nf6 {[%clk 0:02:58.3]}
4. Nc3 {[%clk 0:03:00]} 4... cxd4 {[%clk 0:02:58.6]} 5. Qxd4 {[%clk 0:03:00.9]}
5... a6 {[%clk 0:02:57.4]} 6. Bg5 {[%clk 0:02:57.3]} 6... Nc6 {[%clk 0:02:56.2]}
7. Qd2 {[%clk 0:02:57.3]} 7... Be6 {[%clk 0:02:51]} 8. Be2 {[%clk 0:02:49.1]}
8... Qa5 {[%clk 0:02:42.2]} 9. Bxf6 {[%clk 0:02:46.8]} 9... gxf6 {[%clk
0:02:41.7]} 10. O-O {[%clk 0:02:42.1]} 10... Rc8 {[%clk 0:02:31.5]} 11. Nd4
{[%clk 0:02:20.3]} 11... Nxd4 {[%clk 0:02:25.8]} 12. Qxd4 {[%clk 0:02:21.2]}
12... Qc5 {[%clk 0:02:24.1]} 13. Qd2 {[%clk 0:02:10.7]} 13... h5 {[%clk
0:02:23.6]} 14. Kh1 {[%clk 0:02:05]} 14... h4 {[%clk 0:02:23.4]} 15. f4 {[%clk
0:01:57.3]} 15... f5 {[%clk 0:01:58.5]} 16. e5 {[%clk 0:01:44.7]} 16... dxe5
{[%clk 0:01:53.8]} 17. fxe5 {[%clk 0:01:45.6]} 17... Bh6 {[%clk 0:01:49.3]} 18.
Qd3 {[%clk 0:01:34.7]} 18... Qxe5 {[%clk 0:01:45.9]} 19. Rae1 {[%clk 0:01:33.7]}
19... Rd8 {[%clk 0:01:29.3]} 20. Qf3 {[%clk 0:01:19.7]} 20... Qc7 {[%clk
0:01:15.8]} 21. Bd3 {[%clk 0:01:18.9]} 21... Rd4 {[%clk 0:01:05]} 22. Ne2 {[%clk
0:01:10.5]} 22... Rd5 {[%clk 0:00:57.6]} 23. c4 {[%clk 0:00:59]} 23... Re5
{[%clk 0:00:52.1]} 24. Nd4 {[%clk 0:00:52.6]} 24... Rxe1 {[%clk 0:00:47.4]} 25.
Rxe1 {[%clk 0:00:53.5]} 25... Qa5 {[%clk 0:00:38.4]} 26. Qe2 {[%clk 0:00:44.1]}
26... Qd2 {[%clk 0:00:16.1]} 27. Nxf5 {[%clk 0:00:10.2]} 27... Qxe2 {[%clk
0:00:14.6]} 28. Rxe2 {[%clk 0:00:08.8]} 28... Bg5 {[%clk 0:00:14.3]} 29. Ng7+
{[%clk 0:00:04.1]} 29... Kd7 {[%clk 0:00:13.9]} 30. Nxe6 {[%clk 0:00:04.7]}
30... fxe6 {[%clk 0:00:14.2]} 31. Be4 {[%clk 0:00:05.2]} 31... Kc7 {[%clk
0:00:13.8]} 32. Bf3 {[%clk 0:00:04.9]} 32... Bf6 {[%clk 0:00:13.6]} 33. b3
{[%clk 0:00:04.6]} 33... e5 {[%clk 0:00:11.9]} 34. Kg1 {[%clk 0:00:04]} 34...
Rd8 {[%clk 0:00:11.4]} 35. Kf2 {[%clk 0:00:04]} 35... Rd4 {[%clk 0:00:11.1]} 36.
Re4 {[%clk 0:00:04.1]} 36... Rd2+ {[%clk 0:00:11.2]} 37. Re2 {[%clk 0:00:04.5]}
37... Rd3 {[%clk 0:00:11.6]} 38. Re4 {[%clk 0:00:04.8]} 38... Rc3 {[%clk
0:00:11.7]} 39. Re2 {[%clk 0:00:03.3]} 39... b5 {[%clk 0:00:11.5]} 40. cxb5
{[%clk 0:00:02.7]} 40... axb5 {[%clk 0:00:12.4]} 41. Be4 {[%clk 0:00:03.1]}
41... Kb6 {[%clk 0:00:11]} 42. Rc2 {[%clk 0:00:03.3]} 42... b4 {[%clk
0:00:10.6]} 43. Rxc3 {[%clk 0:00:03.2]} 43... bxc3 {[%clk 0:00:11.5]} 44. Ke3
{[%clk 0:00:03.2]} 44... Kc5 {[%clk 0:00:10.4]} 45. a3 {[%clk 0:00:03.1]} 45...
Bg5+ {[%clk 0:00:08.5]} 46. Kd3 {[%clk 0:00:03.4]} 46... Bd2 {[%clk 0:00:08.7]}
47. b4+ {[%clk 0:00:02.4]} 47... Kb5 {[%clk 0:00:09]} 48. Bd5 {[%clk 0:00:02.2]}
48... Ka4 {[%clk 0:00:09]} 49. Bc4 {[%clk 0:00:01.2]} 49... Kxa3 {[%clk
0:00:08.5]} 50. b5 {[%clk 0:00:01.6]} 50... Kb2 {[%clk 0:00:07.3]} 51. b6 {[%clk
0:00:01.9]} 51... e4+ {[%clk 0:00:07.5]} 52. Ke2 {[%clk 0:00:01.4]} 52... Bf4
{[%clk 0:00:06.5]} 53. b7 {[%clk 0:00:01.6]} 53... c2 {[%clk 0:00:06.6]} 0-1

[Event "Late-Titled-Tuesday-Blitz-February-20-2024"]
[Site "Chess.com"]
[Date "2024.02.20"]
[Round "3"]
[White "ChessFanNM"]
[Black "ImportedItalianMaple"]
[Result "1-0"]
[WhiteElo "2334"]
[BlackElo "2524"]
[TimeControl "180+1"]
[EndTime "14:27:53 PST"]
[Termination "ChessFanNM won on time"]

1. e4 {[%clk 0:03:00]} 1... g6 {[%clk 0:02:57.5]} 2. d4 {[%clk 0:02:58.1]} 2...
Bg7 {[%clk 0:02:58]} 3. Nc3 {[%clk 0:02:57.9]} 3... d5 {[%clk 0:02:58.6]} 4. Nf3
{[%clk 0:02:44.4]} 4... dxe4 {[%clk 0:02:48.9]} 5. Nxe4 {[%clk 0:02:43.9]} 5...
Nf6 {[%clk 0:02:39]} 6. Nxf6+ {[%clk 0:02:36.4]} 6... exf6 {[%clk 0:02:39.9]} 7.
h4 {[%clk 0:02:11.4]} 7... Bg4 {[%clk 0:02:36.3]} 8. c3 {[%clk 0:02:09.9]} 8...
O-O {[%clk 0:02:34.9]} 9. Be3 {[%clk 0:02:04.1]} 9... Nd7 {[%clk 0:02:24.5]} 10.
Qb3 {[%clk 0:01:59.6]} 10... Nb6 {[%clk 0:02:17.5]} 11. O-O-O {[%clk 0:01:43.5]}
11... a5 {[%clk 0:02:16.6]} 12. a4 {[%clk 0:01:42.9]} 12... Nd5 {[%clk
0:01:47.1]} 13. h5 {[%clk 0:01:28.5]} 13... Bxh5 {[%clk 0:01:43]} 14. Bd2 {[%clk
0:01:27]} 14... c6 {[%clk 0:01:36.3]} 15. Rxh5 {[%clk 0:01:18]} 15... gxh5
{[%clk 0:01:35.5]} 16. Bd3 {[%clk 0:01:16.9]} 16... b5 {[%clk 0:01:30.3]} 17.
Nh4 {[%clk 0:01:14.6]} 17... Rb8 {[%clk 0:01:20.8]} 18. Nf5 {[%clk 0:01:12.6]}
18... bxa4 {[%clk 0:01:15.9]} 19. Qxa4 {[%clk 0:01:10.7]} 19... Qb6 {[%clk
0:01:15.9]} 20. Qa2 {[%clk 0:00:54.6]} 20... Qb3 {[%clk 0:01:15.1]} 21. Qxb3
{[%clk 0:00:47.1]} 21... Rxb3 {[%clk 0:01:16]} 22. Bc2 {[%clk 0:00:47.5]} 22...
Rb7 {[%clk 0:01:15.5]} 23. Rh1 {[%clk 0:00:36.7]} 23... Rfb8 {[%clk 0:01:13.3]}
24. b3 {[%clk 0:00:34.3]} 24... Ne7 {[%clk 0:00:59.8]} 25. Nd6 {[%clk
0:00:28.7]} 25... Rd7 {[%clk 0:00:57]} 26. Bf4 {[%clk 0:00:21.9]} 26... Rbd8
{[%clk 0:00:56.4]} 27. Nc4 {[%clk 0:00:21.1]} 27... Ng6 {[%clk 0:00:52.6]} 28.
Be3 {[%clk 0:00:19.3]} 28... h4 {[%clk 0:00:52.6]} 29. Bf5 {[%clk 0:00:18.6]}
29... Rd5 {[%clk 0:00:51.6]} 30. Be4 {[%clk 0:00:17.5]} 30... Rb5 {[%clk
0:00:52.1]} 31. Kc2 {[%clk 0:00:16.8]} 31... f5 {[%clk 0:00:20.6]} 32. Bxc6
{[%clk 0:00:16.3]} 32... Rbb8 {[%clk 0:00:21.3]} 33. Ra1 {[%clk 0:00:10.7]}
33... f4 {[%clk 0:00:21.3]} 34. Bd2 {[%clk 0:00:10.9]} 34... Rbc8 {[%clk
0:00:18.5]} 35. Bf3 {[%clk 0:00:10.3]} 35... Ne7 {[%clk 0:00:09.6]} 36. Rxa5
{[%clk 0:00:09.9]} 36... Nf5 {[%clk 0:00:09.4]} 37. Rxf5 {[%clk 0:00:09.9]}
37... Re8 {[%clk 0:00:08.3]} 38. Rxf4 {[%clk 0:00:10]} 38... Bf6 {[%clk
0:00:07.5]} 39. Rg4+ {[%clk 0:00:10.2]} 39... Kf8 {[%clk 0:00:07.6]} 40. Nd6
{[%clk 0:00:10.3]} 40... Red8 {[%clk 0:00:05.1]} 41. Nxc8 {[%clk 0:00:10.3]}
41... Rxc8 {[%clk 0:00:06]} 42. Kd3 {[%clk 0:00:10.1]} 42... Ke7 {[%clk
0:00:06.6]} 43. c4 {[%clk 0:00:10.2]} 43... Rc7 {[%clk 0:00:07]} 44. d5 {[%clk
0:00:10.4]} 44... Ra7 {[%clk 0:00:07.9]} 45. Bc3 {[%clk 0:00:09.4]} 45... Ra3
{[%clk 0:00:07.4]} 46. Bxf6+ {[%clk 0:00:09.2]} 46... Kxf6 {[%clk 0:00:08.3]}
47. Kc3 {[%clk 0:00:09.8]} 47... Ra2 {[%clk 0:00:08]} 48. Rxh4 {[%clk
0:00:09.9]} 48... Rxf2 {[%clk 0:00:08.7]} 49. Rxh7 {[%clk 0:00:10.1]} 49... Kg6
{[%clk 0:00:08.7]} 50. Rh4 {[%clk 0:00:10.1]} 50... Rf1 {[%clk 0:00:09.3]} 51.
Rg4+ {[%clk 0:00:10.3]} 51... Kf5 {[%clk 0:00:09.4]} 52. Rg8 {[%clk 0:00:09.9]}
52... Rc1+ {[%clk 0:00:09.3]} 53. Kb2 {[%clk 0:00:09.5]} 1-0

[Event "Late-Titled-Tuesday-Blitz-February-20-2024"]
[Site "Chess.com"]
[Date "2024.02.20"]
[Round "3"]
[White "Stalri"]
[Black "koziororo"]
[Result "0-1"]
[WhiteElo "2383"]
[BlackElo "2602"]
[TimeControl "180+1"]
[EndTime "14:27:55 PST"]
[Termination "koziororo won on time"]

1. d4 {[%clk 0:02:58.2]} 1... Nf6 {[%clk 0:02:59.5]} 2. c4 {[%clk 0:02:58.4]}
2... e6 {[%clk 0:03:00.2]} 3. Nc3 {[%clk 0:02:56.3]} 3... Bb4 {[%clk 0:03:00.3]}
4. e3 {[%clk 0:02:55.6]} 4... O-O {[%clk 0:03:00.4]} 5. Bd3 {[%clk 0:02:55.7]}
5... Re8 {[%clk 0:03:00.8]} 6. Ne2 {[%clk 0:02:51.6]} 6... b6 {[%clk 0:03:01.1]}
7. a3 {[%clk 0:02:49.9]} 7... Bf8 {[%clk 0:03:00.7]} 8. e4 {[%clk 0:02:49.4]}
8... d6 {[%clk 0:03:00.3]} 9. O-O {[%clk 0:02:42.8]} 9... e5 {[%clk 0:03:00.8]}
10. d5 {[%clk 0:02:42]} 10... a5 {[%clk 0:02:57.9]} 11. f3 {[%clk 0:02:39.1]}
11... Na6 {[%clk 0:02:50.1]} 12. Be3 {[%clk 0:02:37.8]} 12... Nc5 {[%clk
0:02:50.3]} 13. Bc2 {[%clk 0:02:36.6]} 13... g6 {[%clk 0:02:43.5]} 14. b4 {[%clk
0:02:36.9]} 14... Ncd7 {[%clk 0:02:44]} 15. Qd2 {[%clk 0:02:31]} 15... Bg7
{[%clk 0:02:42.3]} 16. Rab1 {[%clk 0:02:28]} 16... Nh5 {[%clk 0:02:40]} 17. Nb5
{[%clk 0:02:22.9]} 17... axb4 {[%clk 0:02:10.1]} 18. axb4 {[%clk 0:02:21.1]}
18... Ba6 {[%clk 0:02:08.5]} 19. Ra1 {[%clk 0:02:18.3]} 19... Nf4 {[%clk
0:02:06.8]} 20. g3 {[%clk 0:01:59.9]} 20... Nxe2+ {[%clk 0:02:06.8]} 21. Qxe2
{[%clk 0:02:00.8]} 21... Rf8 {[%clk 0:01:42.3]} 22. Ra3 {[%clk 0:01:45.4]} 22...
Bxb5 {[%clk 0:01:38.8]} 23. Rxa8 {[%clk 0:01:46.3]} 23... Qxa8 {[%clk
0:01:39.1]} 24. cxb5 {[%clk 0:01:46.3]} 24... Qa3 {[%clk 0:01:33.8]} 25. Bd2
{[%clk 0:01:30.3]} 25... Ra8 {[%clk 0:01:31.3]} 26. Qc4 {[%clk 0:01:29.2]} 26...
Ra7 {[%clk 0:01:25.6]} 27. Bc3 {[%clk 0:01:28.1]} 27... Qa2 {[%clk 0:01:18]} 28.
Bb3 {[%clk 0:01:27.7]} 28... Qa3 {[%clk 0:01:08.1]} 29. Ra1 {[%clk 0:01:27.5]}
29... Qxa1+ {[%clk 0:01:08.8]} 30. Bxa1 {[%clk 0:01:27.3]} 30... Rxa1+ {[%clk
0:01:09.7]} 31. Kg2 {[%clk 0:01:27.7]} 31... Ra7 {[%clk 0:01:10.6]} 32. h4
{[%clk 0:01:25.6]} 32... h5 {[%clk 0:01:10.2]} 33. g4 {[%clk 0:01:25.2]} 33...
Kf8 {[%clk 0:00:48.5]} 34. Bd1 {[%clk 0:01:22.7]} 34... Bf6 {[%clk 0:00:45.9]}
35. gxh5 {[%clk 0:01:13.9]} 35... gxh5 {[%clk 0:00:46.8]} 36. Kg3 {[%clk
0:01:10.9]} 36... Ke7 {[%clk 0:00:46.5]} 37. Be2 {[%clk 0:01:11.2]} 37... Nf8
{[%clk 0:00:42.8]} 38. Bf1 {[%clk 0:01:04.1]} 38... Ng6 {[%clk 0:00:39.6]} 39.
Bh3 {[%clk 0:01:03.9]} 39... Nf4 {[%clk 0:00:39.9]} 40. Bf5 {[%clk 0:00:54.1]}
40... Kf8 {[%clk 0:00:39.5]} 41. Bh3 {[%clk 0:00:48.2]} 41... Kg7 {[%clk
0:00:37.4]} 42. Qc2 {[%clk 0:00:37.3]} 42... Ra1 {[%clk 0:00:27.5]} 43. Qxc7
{[%clk 0:00:34.2]} 43... Rh1 {[%clk 0:00:27.1]} 44. Qxd6 {[%clk 0:00:21.6]}
44... Rxh3+ {[%clk 0:00:25.5]} 45. Kf2 {[%clk 0:00:21.9]} 45... Rh2+ {[%clk
0:00:24.1]} 46. Ke1 {[%clk 0:00:20.4]} 46... Bxh4+ {[%clk 0:00:18.2]} 47. Kd1
{[%clk 0:00:20.3]} 47... Nd3 {[%clk 0:00:17.6]} 48. f4 {[%clk 0:00:15.7]} 48...
exf4 {[%clk 0:00:16.1]} 49. Qxb6 {[%clk 0:00:13]} 49... Bf6 {[%clk 0:00:14.9]}
50. Qc6 {[%clk 0:00:08.6]} 50... f3 {[%clk 0:00:13.8]} 51. Qb6 {[%clk
0:00:04.1]} 51... Bc3 {[%clk 0:00:13]} 52. Qg1+ {[%clk 0:00:02.3]} 52... Rg2
{[%clk 0:00:13.8]} 53. Qe3 {[%clk 0:00:01.3]} 53... f2 {[%clk 0:00:08.3]} 0-1